bitfinex/quotes_BTCUSD_20251226
["timestamp","ask_amount","ask_price","bid_price","bid_amount"]
[1766778826688,8.66e-06,87575.0,87567.0,0.01141982]
[1766778826937,8.66e-06,87575.0,87566.0,0.07456943]
[1766778827606,8.66e-06,87575.0,87567.0,0.01141982]
[1766778831133,8.66e-06,87575.0,87563.0,0.02286034]
[1766778831344,0.000549,87567.0,87564.0,0.01144]
[1766778831561,8.66e-06,87575.0,87564.0,0.01144]
[1766778831778,8.66e-06,87575.0,87565.0,0.01142008]
[1766778831988,8.66e-06,87575.0,87564.0,0.08779626]
[1766778831989,8.66e-06,87575.0,87566.0,0.01144]
[1766778832576,8.66e-06,87575.0,87567.0,0.03073573]
[1766778833591,8.66e-06,87575.0,87567.0,0.04215555]
[1766778836253,8.66e-06,87575.0,87568.0,0.03073573]
[1766778836660,8.66e-06,87575.0,87568.0,0.0485466]
[1766778837348,8.66e-06,87575.0,87568.0,0.0479976]
[1766778838735,8.66e-06,87575.0,87569.0,0.04215529]
[1766778838938,8.66e-06,87575.0,87570.0,0.13029695]
[1766778839194,8.66e-06,87575.0,87571.0,0.0114193]
[1766778839898,0.01144,87588.0,87575.0,0.01141878]
[1766778840034,0.01154724,87588.0,87572.0,0.02810924]
[1766778840234,0.01154724,87588.0,87572.0,0.07026414]
[1766778840770,0.01154724,87588.0,87572.0,0.05884497]
[1766778841285,0.02296432,87588.0,87573.0,0.03073573]
[1766778841496,0.01141721,87587.0,87574.0,0.03682681]
[1766778841825,0.00010724,87588.0,87574.0,0.03682681]
[1766778843435,0.01152432,87588.0,87574.0,0.03682681]
[1766778844067,0.00010724,87588.0,87574.0,0.03682681]
[1766778844289,0.00010724,87588.0,87575.0,0.01726187]
[1766778847127,0.01152432,87588.0,87575.0,0.01726187]
[1766778847307,0.01141734,87586.0,87574.0,0.03682681]
[1766778847538,0.00055,87574.0,87573.0,0.01144]
[1766778847755,0.00055,87574.0,87569.0,0.03073573]
[1766778847967,0.00055,87574.0,87550.0,0.0824107]
[1766778847968,0.01141878,87575.0,87560.0,0.04087754]
[1766778848166,0.01144,87574.0,87559.0,0.04087754]
[1766778848374,0.01144,87574.0,87556.0,0.01144]
[1766778848375,0.06655608,87574.0,87556.0,0.01144]
[1766778848579,0.07797499,87574.0,87556.0,0.01144]
[1766778848986,0.06655608,87574.0,87556.0,0.02286126]
[1766778850774,0.01144,87574.0,87556.0,0.02286126]
[1766778851605,0.01144,87574.0,87556.0,0.01142126]
[1766778851817,0.02285891,87574.0,87556.0,0.01142126]
[1766778852014,0.02285891,87574.0,87555.0,0.02286139]
[1766778852220,0.02285891,87574.0,87555.0,0.01144]
[1766778852440,0.01141904,87573.0,87555.0,0.02286139]
[1766778852644,0.02285891,87574.0,87555.0,0.02286139]
[1766778853255,0.01144,87574.0,87556.0,0.01142126]
[1766778853757,0.05968346,87573.0,87555.0,0.02286139]
[1766778855134,0.05968346,87573.0,87556.0,0.01142126]
[1766778855549,0.05968346,87573.0,87555.0,0.02286139]
[1766778856370,0.05968346,87573.0,87556.0,0.01142126]
[1766778857213,0.05968346,87573.0,87555.0,0.01144]
[1766778857428,0.0711025,87573.0,87555.0,0.02286139]
[1766778857634,0.05968346,87573.0,87555.0,0.02286139]
[1766778857979,0.05968346,87573.0,87556.0,0.01142126]
[1766778858174,0.05968346,87573.0,87555.0,0.02286139]
[1766778858400,0.05968346,87573.0,87556.0,0.01142126]
[1766778858604,0.05968346,87573.0,87555.0,0.02286139]
[1766778859000,0.05968346,87573.0,87556.0,0.01142126]
[1766778859446,0.0711025,87573.0,87555.0,0.01144]
[1766778859672,0.01141917,87572.0,87555.0,0.01144]
[1766778859971,0.0230987,87571.0,87555.0,0.01144]
[1766778861028,0.034518,87571.0,87555.0,0.01144]
[1766778861233,0.0230987,87571.0,87553.0,0.01142165]
[1766778861438,0.05709783,87569.0,87553.0,0.01144]
[1766778861594,0.01141969,87568.0,87553.0,0.01144]
[1766778861801,0.02198358,87569.0,87553.0,0.01144]
[1766778862219,0.02198358,87569.0,87553.0,0.02286165]
[1766778862853,0.02198358,87569.0,87554.0,0.01142152]
[1766778863295,0.0711025,87573.0,87554.0,0.01142152]
[1766778863452,0.0002,87567.0,87554.0,0.01142152]
[1766778864412,0.0002,87567.0,87553.0,0.01144]
[1766778864800,0.0002,87567.0,87553.0,0.02286165]
[1766778864997,0.0002,87567.0,87554.0,0.01142152]
[1766778865198,0.0002,87567.0,87553.0,0.02286165]
[1766778865199,0.01532563,87567.0,87553.0,0.02286165]
[1766778866038,0.01532563,87567.0,87553.0,0.01144]
[1766778868446,0.01532563,87567.0,87553.0,0.02286165]
[1766778868826,0.01532563,87567.0,87554.0,0.01142152]
[1766778869068,0.01532563,87567.0,87553.0,0.01144]
[1766778869277,0.01532563,87567.0,87553.0,0.02286165]
[1766778869741,0.01532563,87567.0,87554.0,0.01142152]
[1766778870149,0.01532563,87567.0,87553.0,0.02286165]
[1766778872496,0.0002,87567.0,87554.0,0.01142152]
[1766778873325,0.0002,87567.0,87553.0,0.02286165]
[1766778873949,0.0002,87567.0,87554.0,0.01142152]
[1766778874207,0.0002,87567.0,87553.0,0.02286165]
[1766778874576,0.0002,87567.0,87554.0,0.01142152]
[1766778875452,0.00935731,87567.0,87554.0,0.01142152]
[1766778875648,0.00935731,87567.0,87553.0,0.02286165]
[1766778875907,0.00935731,87567.0,87554.0,0.01142152]
[1766778876111,0.00935731,87567.0,87553.0,0.01144]
[1766778877417,0.00935731,87567.0,87553.0,0.05231754]
[1766778877572,0.05377848,87566.0,87553.0,0.05231754]
[1766778878122,0.00935731,87567.0,87553.0,0.04231754]
[1766778878417,0.0002,87567.0,87553.0,0.04231754]
[1766778880476,0.0002,87567.0,87553.0,0.05373919]
[1766778880894,0.0002,87567.0,87553.0,0.04231754]
[1766778882427,0.0002,87567.0,87554.0,0.04087754]
[1766778882630,0.05763251,87567.0,87554.0,0.04087754]
[1766778887682,0.0002,87567.0,87554.0,0.04087754]
[1766778888452,0.0002,87567.0,87554.0,0.05229906]
[1766778888698,0.0002,87567.0,87554.0,0.04087754]
[1766778889002,0.0002,87567.0,87554.0,0.05229906]
[1766778889230,0.0002,87567.0,87554.0,0.04087754]
[1766778889431,0.0471532,87566.0,87554.0,0.04087754]
[1766778891618,0.0002,87567.0,87566.0,0.000199]
[1766778892243,0.0002,87567.0,87555.0,0.01142139]
[1766778892622,0.0002,87567.0,87556.0,0.01142126]
[1766778892820,0.0002,87567.0,87555.0,0.01142139]
[1766778893593,0.0002,87567.0,87554.0,0.05229906]
[1766778894538,0.0002,87567.0,87555.0,0.01142139]
[1766778895171,0.0002,87567.0,87554.0,0.04087754]
[1766778895726,0.0116412,87567.0,87554.0,0.04087754]
[1766778896332,0.0002,87567.0,87554.0,0.04087754]
[1766778900525,0.0002,87567.0,87553.0,0.04087754]
[1766778901482,0.0002,87567.0,87550.0,0.04087754]
[1766778901483,0.011421,87558.0,87550.0,0.04087754]
[1766778901695,0.06853124,87552.0,87547.0,0.0002]
[1766778901949,0.02286191,87551.0,87547.0,0.0002]
[1766778902301,0.01144,87551.0,87547.0,0.0002]
[1766778902749,0.50559793,87560.0,87547.0,0.0002]
[1766778902750,0.011421,87558.0,87551.0,0.000199]
[1766778902955,0.01144,87557.0,87547.0,0.00055766]
[1766778903164,0.02286113,87557.0,87547.0,0.00055766]
[1766778903371,0.011421,87558.0,87547.0,0.00055766]
[1766778903547,0.01142139,87555.0,87547.0,0.00020766]
[1766778903683,0.01142191,87551.0,87547.0,0.00020766]
[1766778904114,0.01142165,87553.0,87547.0,0.00020766]
[1766778906075,0.02286126,87556.0,87547.0,0.00020766]
[1766778906207,0.01142139,87555.0,87547.0,0.00020766]
[1766778906415,0.01142139,87555.0,87535.0,0.011424]
[1766778906621,0.01142139,87555.0,87535.0,0.01149756]
[1766778906835,0.06829079,87554.0,87535.0,7.356e-05]
[1766778907216,0.01142178,87552.0,87535.0,7.356e-05]
[1766778907436,0.06829079,87554.0,87535.0,7.356e-05]
[1766778907636,0.06829079,87554.0,87535.0,0.01149756]
[1766778907839,0.06829079,87554.0,87535.0,7.356e-05]
[1766778907840,0.01142165,87553.0,87535.0,7.356e-05]
[1766778908043,0.02341771,87552.0,87535.0,7.356e-05]
[1766778908245,0.02341771,87552.0,87535.0,0.01149756]
[1766778908539,0.02341771,87552.0,87535.0,7.356e-05]
[1766778909266,0.01142165,87553.0,87535.0,0.01149756]
[1766778909731,0.01142165,87553.0,87535.0,7.356e-05]
[1766778909938,0.01142178,87552.0,87535.0,7.356e-05]
[1766778910383,0.44849377,87550.0,87535.0,7.356e-05]
[1766778911384,0.44849377,87550.0,87535.0,0.01149756]
[1766778911606,0.05396457,87549.0,87535.0,0.01149756]
[1766778912072,0.05396457,87549.0,87536.0,0.01142387]
[1766778912522,0.05396457,87549.0,87535.0,0.01149756]
[1766778913029,0.05396457,87549.0,87535.0,7.356e-05]
[1766778915767,0.05396457,87549.0,87535.0,0.01149756]
[1766778916383,0.01142165,87553.0,87535.0,0.01149756]
[1766778916696,0.44849377,87550.0,87535.0,0.01149756]
[1766778916878,0.01142139,87555.0,87536.0,0.01142387]
[1766778917226,0.01142139,87555.0,87535.0,0.01149756]
[1766778917436,0.01142139,87555.0,87536.0,0.01142387]
[1766778917641,0.01142152,87554.0,87535.0,0.01149756]
[1766778917844,0.01142165,87553.0,87535.0,7.356e-05]
[1766778918062,0.01142178,87552.0,87535.0,7.356e-05]
[1766778918294,0.01142165,87553.0,87535.0,7.356e-05]
[1766778918493,0.44849377,87550.0,87535.0,7.356e-05]
[1766778918744,0.06727386,87549.0,87535.0,7.356e-05]
[1766778921980,0.06727386,87549.0,87535.0,0.01149756]
[1766778922297,0.06727386,87549.0,87535.0,7.356e-05]
[1766778922626,0.06727386,87549.0,87535.0,0.01149756]
[1766778923474,0.06727386,87549.0,87535.0,7.356e-05]
[1766778923706,0.06828859,87548.0,87535.0,0.01149756]
[1766778926209,0.07574619,87555.0,87548.0,0.000549]
[1766778926404,0.01142139,87555.0,87548.0,0.000549]
[1766778926630,0.01142139,87555.0,87535.0,7.356e-05]
[1766778926988,0.02286126,87556.0,87535.0,7.356e-05]
[1766778927783,0.01142139,87555.0,87537.0,0.01142374]
[1766778927977,0.02172994,87554.0,87537.0,0.01142374]
[1766778928178,0.02172994,87554.0,87535.0,7.356e-05]
[1766778928179,0.02172994,87554.0,87536.0,0.01142387]
[1766778929862,0.00596856,87557.0,87540.0,0.44849377]
[1766778930060,0.01144,87554.0,87544.0,0.05711395]
[1766778930262,0.00596856,87557.0,87548.0,0.0114223]
[1766778930464,0.00596856,87557.0,87545.0,0.05825533]
[1766778930465,0.00596856,87557.0,87546.0,0.01142256]
[1766778930712,0.00596856,87557.0,87548.0,0.0114223]
[1766778930904,0.00541856,87557.0,87548.0,0.0114223]
[1766778931051,0.01144,87562.0,87546.0,0.01142256]
[1766778931249,0.01144,87562.0,87545.0,0.01142269]
[1766778931498,0.01144,87562.0,87544.0,0.01142282]
[1766778932803,0.01144,87562.0,87545.0,0.01142269]
[1766778933210,0.01144,87562.0,87544.0,0.01056431]
[1766778933427,0.01144,87562.0,87545.0,0.01142269]
[1766778933630,0.01144,87562.0,87544.0,0.01056431]
[1766778933846,0.01144,87562.0,87544.0,0.01142282]
[1766778934041,0.02973404,87562.0,87545.0,0.01142269]
[1766778934207,0.02973404,87562.0,87544.0,0.01142282]
[1766778934813,0.02973404,87562.0,87545.0,0.01142269]
[1766778935217,0.02973404,87562.0,87545.0,0.13030021]
[1766778935415,0.01144,87562.0,87545.0,0.13030021]
[1766778937417,0.01144,87562.0,87545.0,0.11887752]
[1766778937616,0.01144,87562.0,87545.0,0.13030021]
[1766778937820,0.01144,87562.0,87546.0,0.01142256]
[1766778940283,0.01144,87562.0,87547.0,0.01142243]
[1766778940498,0.01144,87562.0,87548.0,0.06853348]
[1766778941333,0.01144,87562.0,87548.0,0.05529428]
[1766778941753,0.01144,87562.0,87547.0,0.01142243]
[1766778942958,0.01144,87562.0,87546.0,0.01142256]
[1766778943355,0.01144,87562.0,87547.0,0.01142243]
[1766778943595,0.01144,87562.0,87548.0,0.0114223]
[1766778943793,0.01144,87562.0,87547.0,0.01142243]
[1766778943996,0.01029986,87561.0,87548.0,0.0114223]
[1766778944358,0.01144,87562.0,87549.0,0.01142217]
[1766778944580,0.00693662,87562.0,87551.0,0.01142191]
[1766778945493,0.00693662,87562.0,87550.0,0.01142204]
[1766778945890,0.00693662,87562.0,87551.0,0.01142191]
[1766778946320,0.00693662,87562.0,87550.0,0.01142204]
[1766778946837,0.00693662,87562.0,87548.0,0.0114223]
[1766778947159,0.00693662,87562.0,87549.0,0.01142217]
[1766778947560,0.00693662,87562.0,87548.0,0.0114223]
[1766778947760,0.00693662,87562.0,87546.0,0.06697489]
[1766778948426,0.00693662,87562.0,87549.0,0.01142217]
[1766778949819,0.00693662,87562.0,87550.0,0.01142204]
[1766778950180,0.00693662,87562.0,87549.0,0.01142217]
[1766778951676,0.00693662,87562.0,87550.0,0.01142204]
[1766778951966,0.00693662,87562.0,87549.0,0.01142217]
[1766778952166,0.01144,87563.0,87550.0,0.01142204]
[1766778952395,0.02173959,87563.0,87547.0,0.05711176]
[1766778952667,0.02173959,87563.0,87549.0,0.01142217]
[1766778953170,0.02173959,87563.0,87551.0,0.01142191]
[1766778953922,0.02173959,87563.0,87548.0,0.0114223]
[1766778954344,0.02173959,87563.0,87546.0,0.0098623]
[1766778954584,0.01132982,87562.0,87546.0,0.02128486]
[1766778954791,0.01132982,87562.0,87545.0,0.10773982]
[1766778955005,0.02173959,87563.0,87546.0,0.01144]
[1766778955514,0.03315993,87563.0,87546.0,0.01144]
[1766778956007,0.01142047,87562.0,87543.0,0.11887752]
[1766778956237,0.02173959,87563.0,87543.0,0.18743191]
[1766778956391,0.02173959,87563.0,87545.0,0.01142269]
[1766778956592,0.03315993,87563.0,87544.0,0.01142282]
[1766778956971,0.02173959,87563.0,87545.0,0.01142269]
[1766778957265,0.03315993,87563.0,87545.0,0.01142269]
[1766778957390,0.02173959,87563.0,87543.0,0.14174047]
[1766778957593,0.03315993,87563.0,87543.0,0.14174047]
[1766778958033,0.01704022,87562.0,87543.0,0.14174047]
[1766778958415,0.02846069,87562.0,87543.0,0.14174047]
[1766778958615,0.01704022,87562.0,87544.0,0.01142282]
[1766778959219,0.02846069,87562.0,87544.0,0.01142282]
[1766778959427,0.02846069,87562.0,87543.0,0.18276391]
[1766778959625,0.03130688,87561.0,87543.0,0.18276391]
[1766778959886,0.01988628,87561.0,87543.0,0.18276391]
[1766778960388,0.03130688,87561.0,87543.0,0.17134096]
[1766778960584,0.01988628,87561.0,87544.0,0.01142282]
[1766778960719,0.01988628,87561.0,87543.0,0.18276391]
[1766778961148,0.01902874,87560.0,87543.0,0.06388639]
[1766778961373,0.01902874,87560.0,87543.0,0.02286295]
[1766778961808,0.01902874,87560.0,87544.0,0.01142282]
[1766778962131,0.01902874,87560.0,87543.0,0.06388639]
[1766778962316,0.01902874,87560.0,87543.0,0.05246344]
[1766778962515,0.01892329,87559.0,87543.0,0.05246344]
[1766778962714,0.01892329,87559.0,87543.0,0.06388639]
[1766778963079,0.01892329,87559.0,87543.0,0.05246344]
[1766778963960,0.01892329,87559.0,87543.0,0.04102344]
[1766778964317,0.01892329,87559.0,87543.0,0.05244639]
[1766778964556,0.01891273,87558.0,87543.0,0.04102344]
[1766778965314,0.01891273,87558.0,87543.0,0.05244639]
[1766778965537,0.01891273,87558.0,87543.0,0.04102344]
[1766778966114,0.01891273,87558.0,87543.0,0.05244639]
[1766778966314,0.01891273,87558.0,87544.0,0.01142282]
[1766778966562,0.01205945,87557.0,87544.0,0.04102344]
[1766778966790,0.01144,87556.0,87543.0,0.04102344]
[1766778967091,0.01144,87556.0,87543.0,0.03402344]
[1766778967310,0.01144,87556.0,87541.0,0.01144]
[1766778967535,0.01144,87556.0,87542.0,0.05711505]
[1766778968057,0.01144,87556.0,87541.0,0.06855544]
[1766778968354,0.01144,87556.0,87543.0,0.01142295]
[1766778969338,0.01144,87556.0,87544.0,0.01142282]
[1766778973114,0.01144,87556.0,87545.0,0.01142269]
[1766778973469,0.01144,87556.0,87546.0,0.01142256]
[1766778973683,0.01144,87556.0,87548.0,0.05711102]
[1766778973883,0.01144,87556.0,87548.0,0.06853332]
[1766778974085,0.01144,87557.0,87550.0,0.01142204]
[1766778974295,0.01144,87557.0,87549.0,0.01142217]
[1766778974528,0.01144,87557.0,87547.0,0.01142243]
[1766778975105,0.01144,87557.0,87548.0,0.0114223]
[1766778975309,0.01144,87557.0,87547.0,0.01142243]
[1766778975884,0.01144,87557.0,87548.0,0.0114223]
[1766778976125,0.01144,87557.0,87547.0,0.01142243]
[1766778976347,0.01142008,87565.0,87546.0,0.01142256]
[1766778976510,0.01144,87564.0,87546.0,0.01142256]
[1766778976892,0.01144,87564.0,87547.0,0.01142243]
[1766778977126,0.05689483,87565.0,87547.0,0.01142243]
[1766778977295,0.01144,87563.0,87547.0,0.01142243]
[1766778978180,0.01144,87563.0,87548.0,0.0114223]
[1766778978382,0.07799721,87563.0,87548.0,0.0114223]
[1766778979355,0.07799721,87563.0,87547.0,0.01142243]
[1766778979897,0.01144,87562.0,87550.0,0.01142204]
[1766778980091,0.01144,87562.0,87547.0,0.01142243]
[1766778980293,0.01144,87561.0,87547.0,0.01142243]
[1766778980501,0.00781972,87560.0,87547.0,0.01142243]
[1766778981232,0.01144,87559.0,87547.0,0.01142243]
[1766778981982,0.01144,87559.0,87545.0,0.01142269]
[1766778982182,0.01144,87559.0,87546.0,0.01142256]
[1766778983152,0.01144,87559.0,87544.0,0.05711395]
[1766778984796,0.01144,87559.0,87546.0,0.01142256]
[1766778984992,0.00779972,87558.0,87543.0,0.06853756]
[1766778985410,0.01144,87559.0,87543.0,0.06853756]
[1766778986396,0.01144,87559.0,87545.0,0.01142269]
[1766778987907,0.01144,87559.0,87547.0,0.01142243]
[1766778988382,0.01144,87559.0,87551.0,0.03081748]
[1766778988578,0.01144,87559.0,87550.0,0.01481748]
[1766778989486,0.01144,87559.0,87547.0,0.01142243]
[1766778990095,0.01144,87559.0,87548.0,0.0114223]
[1766778990261,0.01144,87559.0,87547.0,0.01142243]
[1766778991810,0.01144,87559.0,87546.0,0.06853511]
[1766778992352,0.01144,87559.0,87545.0,0.06853604]
[1766778992471,0.01144,87559.0,87546.0,0.01142256]
[1766778992671,0.01144,87559.0,87547.0,0.01142243]
[1766778992929,0.01144,87559.0,87548.0,0.0114223]
[1766778994331,0.01144,87559.0,87547.0,0.01142243]
[1766778994478,0.01144,87559.0,87548.0,0.0114223]
[1766778996284,0.01144,87559.0,87547.0,0.01142243]
[1766778996453,0.01144,87559.0,87548.0,0.0114223]
[1766778996855,0.01144,87559.0,87540.0,0.51025738]
[1766778996856,0.01144,87559.0,87544.0,0.01142282]
[1766778997057,0.01144,87559.0,87546.0,0.01142256]
[1766778998142,0.01144,87559.0,87547.0,0.01142243]
[1766778998562,0.01144,87559.0,87548.0,0.0114223]
[1766778999060,0.01144,87559.0,87549.0,0.01142217]
[1766778999265,0.01144,87559.0,87548.0,0.0114223]
[1766778999466,0.0002,87567.0,87549.0,0.01142217]
[1766778999679,0.07289974,87566.0,87549.0,0.01142217]
[1766778999878,0.07289974,87566.0,87550.0,0.01142204]
[1766779000176,0.07289974,87566.0,87549.0,0.01142217]
[1766779000522,0.07289974,87566.0,87548.0,0.0114223]
[1766779000720,0.01144,87565.0,87549.0,0.01142217]
[1766779000923,0.02892392,87564.0,87549.0,0.01142217]
[1766779001337,0.02892392,87564.0,87550.0,0.44855581]
[1766779002011,0.01144,87563.0,87550.0,0.44855581]
[1766779002167,0.01144,87563.0,87550.0,0.45997785]
[1766779002586,0.01144,87563.0,87550.0,0.44855581]
[1766779002780,0.01144,87563.0,87547.0,0.01142243]
[1766779002988,0.01073588,87562.0,87547.0,0.01142243]
[1766779003184,0.01073588,87562.0,87546.0,0.05093927]
[1766779003405,0.01073588,87562.0,87546.0,0.01142256]
[1766779004232,0.01073588,87562.0,87545.0,0.0509394]
[1766779005432,0.01073588,87562.0,87547.0,0.01142243]
[1766779005789,0.01073588,87562.0,87546.0,0.01142256]
[1766779006029,0.01144,87561.0,87546.0,0.01142256]
[1766779006448,0.01751956,87560.0,87546.0,0.01142256]
[1766779007163,0.01751956,87560.0,87544.0,0.01142282]
[1766779007370,0.01142178,87552.0,87541.0,0.06170157]
[1766779007596,0.001099,87541.0,87535.0,7.356e-05]
[1766779008192,0.01142204,87550.0,87535.0,7.356e-05]
[1766779008367,0.08483301,87549.0,87535.0,7.356e-05]
[1766779015752,0.0114223,87548.0,87535.0,7.356e-05]
[1766779015960,0.08483301,87549.0,87535.0,7.356e-05]
[1766779016372,0.09625518,87549.0,87535.0,7.356e-05]
[1766779016580,0.01142204,87550.0,87535.0,7.356e-05]
[1766779016581,0.08760554,87548.0,87535.0,7.356e-05]
[1766779018389,0.09902784,87548.0,87535.0,7.356e-05]
[1766779018775,0.08760554,87548.0,87535.0,7.356e-05]
[1766779018975,0.09902784,87548.0,87535.0,7.356e-05]
[1766779019174,0.08760554,87548.0,87535.0,7.356e-05]
[1766779019355,0.06960865,87547.0,87535.0,7.356e-05]
[1766779021878,0.44855581,87545.0,87526.0,0.00025696]
[1766779022253,0.50567526,87536.0,87516.0,0.06170157]
[1766779022454,0.01142452,87531.0,87515.0,0.06170157]
[1766779022667,0.01144,87535.0,87514.0,0.0004]
[1766779022668,0.44855581,87530.0,87514.0,0.0004]
[1766779022861,0.04828439,87529.0,87514.0,0.0004]
[1766779023018,0.01144,87528.0,87514.0,0.0004]
[1766779025520,0.01144,87528.0,87514.0,0.01182674]
[1766779025985,0.01144,87528.0,87515.0,0.01142661]
[1766779026886,0.01144,87528.0,87514.0,0.01182674]
[1766779027001,0.04599958,87527.0,87514.0,0.01182674]
[1766779027204,0.04599958,87527.0,87514.0,0.0004]
[1766779027646,0.04599958,87527.0,87514.0,0.01182674]
[1766779028168,0.04599958,87527.0,87514.0,0.0004]
[1766779028403,0.04599958,87527.0,87515.0,0.01142661]
[1766779028610,0.05059954,87526.0,87515.0,0.01142661]
[1766779028860,0.05059954,87526.0,87514.0,0.01182674]
[1766779029275,0.05059954,87526.0,87515.0,0.01142661]
[1766779029593,0.05059954,87526.0,87514.0,0.01182674]
[1766779030326,0.05059954,87526.0,87515.0,0.01142661]
[1766779030864,0.05059954,87526.0,87514.0,0.06895992]
[1766779031178,0.05105954,87525.0,87516.0,0.01142648]
[1766779031802,0.05105954,87525.0,87515.0,0.01142661]
[1766779033201,0.05105954,87525.0,87514.0,0.01182674]
[1766779034106,0.05105954,87525.0,87515.0,0.01142661]
[1766779034307,0.05105954,87525.0,87514.0,0.01182674]
[1766779034537,0.05110554,87524.0,87514.0,0.01182674]
[1766779034738,0.05110554,87524.0,87515.0,0.01142661]
[1766779034894,0.05110554,87524.0,87514.0,0.01182674]
[1766779035105,0.05110554,87524.0,87518.0,0.00025031]
[1766779038821,0.05110554,87524.0,87518.0,3.1e-07]
[1766779041150,0.01144,87528.0,87518.0,3.1e-07]
[1766779042047,0.01144,87528.0,87518.0,0.00010765]
[1766779043851,0.01144,87528.0,87510.0,0.0004]
[1766779043852,0.01142504,87527.0,87510.0,0.0004]
[1766779044070,0.01142595,87520.0,87510.0,8.592e-05]
[1766779044269,0.02629343,87519.0,87510.0,8.592e-05]
[1766779044565,0.02608961,87519.0,87510.0,8.592e-05]
[1766779048373,0.0375157,87519.0,87510.0,8.592e-05]
[1766779048601,0.02608961,87519.0,87510.0,8.592e-05]
[1766779054126,0.01142622,87518.0,87510.0,8.592e-05]
[1766779054325,0.01403496,87517.0,87510.0,8.592e-05]
[1766779056004,0.02546131,87517.0,87510.0,8.592e-05]
[1766779056223,0.01142648,87516.0,87510.0,8.592e-05]
[1766779057300,0.01403496,87517.0,87510.0,8.592e-05]
[1766779057500,0.06491045,87516.0,87510.0,8.592e-05]
[1766779058064,0.01403496,87517.0,87510.0,8.592e-05]
[1766779059726,0.01403496,87517.0,87510.0,0.00033625]
[1766779070375,0.01142491,87528.0,87510.0,0.00033625]
[1766779070617,0.01142439,87532.0,87510.0,0.00033625]
[1766779070824,0.01142465,87530.0,87514.0,0.11887752]
[1766779071327,0.02286452,87531.0,87514.0,0.11887752]
[1766779071528,0.01142465,87530.0,87514.0,0.11887752]
[1766779071764,0.01142478,87529.0,87514.0,0.11887752]
[1766779072007,0.01142465,87530.0,87514.0,0.11887752]
[1766779072220,0.01142478,87529.0,87514.0,0.11887752]
[1766779072945,0.01144,87531.0,87514.0,0.11887752]
[1766779073146,0.01142465,87530.0,87514.0,0.11887752]
[1766779074214,0.01144,87531.0,87514.0,0.11887752]
[1766779074410,0.02286452,87531.0,87514.0,0.11887752]
[1766779074812,0.01144,87531.0,87514.0,0.11887752]
[1766779075015,0.02286452,87531.0,87514.0,0.11887752]
[1766779076141,0.06479683,87531.0,87514.0,0.11887752]
[1766779076344,0.05337231,87531.0,87514.0,0.11887752]
[1766779077308,0.01144,87531.0,87516.0,0.05713205]
[1766779077515,0.01142374,87537.0,87531.0,0.00055]
[1766779077516,0.01144,87537.0,87531.0,0.00055]
[1766779077719,0.01144,87537.0,87526.0,0.01142517]
[1766779078108,0.01144,87537.0,87525.0,0.0114253]
[1766779078524,0.01144,87537.0,87525.0,0.08260617]
[1766779078980,0.01144,87537.0,87525.0,0.0114253]
[1766779079722,0.01144,87537.0,87524.0,0.06855247]
[1766779079923,0.01144,87537.0,87525.0,0.0114253]
[1766779080480,0.44901581,87550.0,87521.0,0.05712874]
[1766779080481,0.03089227,87556.0,87537.0,0.01197374]
[1766779080642,0.01144,87555.0,87537.0,0.00055]
[1766779080846,0.01144,87555.0,87540.0,0.01142334]
[1766779081116,0.49477581,87560.0,87543.0,0.01142295]
[1766779081117,0.01144,87554.0,87543.0,0.01142295]
[1766779081318,0.01144,87554.0,87540.0,0.01142334]
[1766779081632,0.01144,87554.0,87538.0,0.01142361]
[1766779081837,0.01154215,87554.0,87536.0,0.01142387]
[1766779082270,0.01154215,87554.0,87539.0,0.01142347]
[1766779082489,0.01154215,87554.0,87537.0,0.01142374]
[1766779082688,0.02755118,87554.0,87537.0,0.01142374]
[1766779083096,0.0002,87550.0,87537.0,0.01142374]
[1766779083674,0.0002,87550.0,87538.0,0.01142361]
[1766779083885,0.0002,87550.0,87539.0,0.01142347]
[1766779084310,0.0002,87550.0,87538.0,0.01142361]
[1766779084805,0.0002,87550.0,87539.0,0.01142347]
[1766779084966,0.0002,87550.0,87540.0,0.44901581]
[1766779085986,0.01031135,87549.0,87540.0,0.44901581]
[1766779086793,0.01031135,87549.0,87532.0,0.06854588]
[1766779086996,0.01031135,87549.0,87532.0,0.01142439]
[1766779087434,0.01031135,87549.0,87534.0,0.01142413]
[1766779087636,0.01031135,87549.0,87535.0,0.011424]
[1766779088383,0.01154215,87554.0,87538.0,0.01142361]
[1766779088612,0.01154215,87554.0,87539.0,0.46043928]
[1766779088875,0.01154215,87554.0,87539.0,0.44901581]
[1766779090194,0.01154215,87554.0,87539.0,0.46043928]
[1766779090742,0.01154215,87554.0,87540.0,0.01142334]
[1766779091542,0.01144,87553.0,87541.0,0.01142321]
[1766779091764,0.01144,87553.0,87540.0,0.44901581]
[1766779092376,0.02173098,87553.0,87540.0,0.44901581]
[1766779092545,0.02173098,87553.0,87540.0,0.40201581]
[1766779092951,0.01142191,87551.0,87540.0,0.44901581]
[1766779093354,0.03315263,87553.0,87540.0,0.44901581]
[1766779093558,0.02173098,87553.0,87540.0,0.44901581]
[1766779093772,0.01144,87553.0,87540.0,0.44901581]
[1766779094999,0.01144,87553.0,87546.0,0.11887752]
[1766779095781,0.01144,87553.0,87546.0,0.11832852]
[1766779097539,0.01144,87553.0,87546.0,0.11818852]
[1766779098729,0.00010215,87554.0,87546.0,0.11818852]
[1766779098901,0.01144015,87554.0,87547.0,0.05786273]
[1766779099105,0.01144015,87554.0,87546.0,0.11818852]
[1766779099309,0.01144015,87554.0,87546.0,0.12961108]
[1766779099507,0.01144015,87554.0,87547.0,0.01142243]
[1766779100152,1.5e-07,87554.0,87547.0,0.01142243]
[1766779100369,1.5e-07,87554.0,87548.0,0.0114223]
[1766779100586,1.5e-07,87554.0,87546.0,0.12961108]
[1766779100712,1.5e-07,87554.0,87547.0,0.01142243]
[1766779101137,1.5e-07,87554.0,87546.0,0.12961108]
[1766779101754,1.5e-07,87554.0,87547.0,0.01142243]
[1766779102402,1.5e-07,87554.0,87546.0,0.12961108]
[1766779102872,0.01144,87566.0,87552.0,0.01142178]
[1766779103056,0.01179793,87566.0,87560.0,0.118422]
[1766779103256,0.00782835,87566.0,87560.0,0.118422]
[1766779104231,0.00782835,87566.0,87551.0,0.01142191]
[1766779104428,0.000651,87560.0,87551.0,0.01142191]
[1766779104633,0.000651,87560.0,87552.0,0.01142178]
[1766779104859,0.00782835,87566.0,87551.0,0.01142191]
[1766779105056,0.00782835,87566.0,87560.0,0.11887752]
[1766779105631,0.00782835,87566.0,87560.0,0.11877652]
[1766779106132,0.00035793,87566.0,87560.0,0.11877652]
[1766779107210,0.01144,87565.0,87560.0,0.11877652]
[1766779107809,0.002476,87565.0,87560.0,0.13019726]
[1766779108363,0.002476,87565.0,87560.0,0.11877652]
[1766779115390,0.00050901,87565.0,87560.0,0.11877652]
[1766779115594,0.01144,87584.0,87568.0,0.01141969]
[1766779115873,0.00010732,87584.0,87574.0,0.11887752]